[Event "FIDE WSCC 50 2022"]
[Site "Assisi"]
[Date "2022.11.24"]
[Round "9.1"]
[White "Sturua, Zurab"]
[Black "Morovic Fernandez, Ivan"]
[Result "1-0"]
[ECO "D31"]
[WhiteElo "2522"]
[BlackElo "2480"]
[Annotator "TA"]
[PlyCount "77"]
[EventDate "2022.11.14"]
[EventType "swiss"]
[EventCountry "ITA"]
[SourceTitle "playchess.com"]
[Source "ChessBase"]
[SourceQuality "1"]
[TimeControl "40/5400+30:1800+30"]

{[%evp 11,77,25,29,25,25,18,34,34,28,21,40,23,30,28,30,25,30,25,30,23,36,27,28,8,23,0,0,0,9,0,51,0,49,18,14,18,21,-5,35,35,101,98,150,150,134,128,144,132,206,206,532,524,631,635,612,606,587,583,640,624,762,760,1341,1360,6503,6189,5422,5297]} 1. c4 {[%emt 0:00:11]} e6 {[%emt 0:00:36]} 2. Nc3 {[%emt 0:00:40]} d5 {[%emt 0:00:08]} 3. d4 {[%emt 0:00:23]} Be7 {[%emt 0:00:07]} 4. cxd5 {[%emt 0:01:32]} exd5 {[%emt 0:00:33]} 5. Bf4 {[%emt 0:00:14]} c6 {[%emt 0:00:08]} 6. Qc2 {[%emt 0:02:00]} Bd6 {[%emt 0:01:08]} 7. Bxd6 {[%emt 0:04:37] D31: Queen's Gambit Declined: Semi-Slav without ...Nf6 (+ Marshall Gambit and Noteboom) and Exchange Variation lines without ...Nf6.} Qxd6 {[%emt 0:00:07]} 8. e3 {[%emt 0:00:17]} Ne7 {[%emt 0:00:54][%cal Bg8e7,Be7f5,Bf5g7][%mdl 32]} 9. Bd3 {[%emt 0:00:38] White is slightly better.} g6 {[%emt 0:00:10]} 10. f3 {[%emt 0:03:01]} Nf5 {[%emt 0:00:34] [#]} 11. Qd2 $146 {[%emt 0:04:31]} ({Predecessor:} 11. Bxf5 Bxf5 12. e4 dxe4 13. fxe4 Bg4 14. h3 Qg3+ 15. Qf2 Qxf2+ 16. Kxf2 Be6 17. Nf3 {1-0 (29) Mekhitarian,K (2560)-Umetsubo,C (2379) Cuiaba 2021}) 11... Be6 {[%emt 0:11:48]} 12. Nge2 {[%emt 0:00:58]} Nd7 {[%emt 0:01:51]} 13. O-O {[%emt 0:05:28]} O-O {[%emt 0:01:55]} 14. Bc2 {[%emt 0:09:26]} Nb6 {[%emt 0:09:16]} 15. b3 {[%emt 0:00:18] Against Nc4} (15. Bxf5 {seems wilder.} Nc4 16. Qd3 Bxf5 17. e4) 15... Ng7 {[%emt 0:02:20]} 16. Rad1 {[%emt 0:08:00]} Rae8 {[%emt 0:07:57]} 17. e4 {[%emt 0:01:16]} f6 {[%emt 0:01:13]} 18. Ng3 {[%emt 0:07:21]} dxe4 {[%emt 0:12:57]} 19. fxe4 {[%emt 0:03:57]} Bg4 {[%emt 0:00:34]} 20. Nce2 {[%emt 0:09:03]} Rd8 {[%emt 0:12:01]} (20... Nh5 $11) 21. Qa5 {[%emt 0:07:56]} (21. h3 $14 Bxe2 22. Nxe2) 21... Nd7 {[%emt 0:02:32]} (21... f5 $11 {deserves consideration.}) 22. Rd2 {[%emt 0:03:00][%cal Bd1d2,Bd2d4,Bd4d7,Bd7a7][%mdl 32]} b6 {[%emt 0:06:19]} 23. Qc3 {[%emt 0:01:56]} (23. Qxa7 $2 Ra8 24. Qb7 Rfb8 $19) 23... c5 {[%emt 0:00:38] Against b4} 24. Nf4 {[%emt 0:02:48]} cxd4 {[%emt 0:03:58]} (24... Ne5 $5 {[%cal Rc5d4]}) 25. Rxd4 {[%emt 0:00:21]} Qe5 {[%emt 0:02:42] [#]} (25... Qc5 $14 26. Qxc5 Nxc5) 26. Qd2 $1 $16 {[%emt 0:02:42]} Rc8 {[%emt 0:01:16]} ({Black should try} 26... Qe8) 27. Bd1 {[%emt 0:00:51]} (27. Rxd7 $2 Bxd7 28. Bd3 b5 $19) 27... Bxd1 {[%emt 0:01:45]} 28. Rxd7 {[%emt 0:01:00]} (28. Rxd1 $6 Nc5 $14) 28... Bg4 {[%emt 0:04:13]} 29. Rxa7 {[%emt 0:01:26] White is more active.} Rcd8 {[%emt 0:04:22]} (29... Be6 $16 {was called for.} 30. Qb4 Rf7 31. Qxb6 Rxa7 32. Qxa7 Bf7) 30. Nd5 $18 {[%emt 0:02:24]} f5 $2 {[%emt 0:03:54]} (30... Kh8 {is a better chance.} 31. a4 (31. Qh6 Bd7 $18) 31... Bd7 32. Nxf6 (32. Nxb6 Bxa4 33. Qh6 Qd4+ 34. Kh1 Bd7 $16) (32. Qh6 f5 $18) 32... Rxf6) 31. Re7 {[%emt 0:03:34] White is clearly winning.} Qd6 {[%emt 0:05:41]} 32. Qh6 {[%emt 0:00:39][%csl Ge7][%cal Rh6g7] [#] Against f4} Rf7 {[%emt 0:00:07]} 33. Rxf7 {[%emt 0:00:10]} Kxf7 {[%emt 0:00:01]} 34. Qxh7 {[%emt 0:00:24][%cal Oe4f5] Hoping for exf5!} Qe5 {[%emt 0:01:39]} 35. Nf4 {[%emt 0:05:30]} ({Less strong is} 35. Nxb6 Rd1 36. Rxd1 Bxd1 $16) 35... Rd6 {[%emt 0:00:49]} 36. h3 {[%emt 0:00:50] Against g5} Qc5+ {[%emt 0:01:13]} 37. Kh2 {[%emt 0:00:46]} Bd1 {[%emt 0:00:02]} 38. exf5 {[%emt 0:00:27]} gxf5 {[%emt 0:00:10]} 39. Nfh5 {[%emt 0:00:28] Weighted Error Value: White=0.08 (flawless) /Black=0.51} 1-0

[Event "FIDE WSCC 50 2022"]
[Site "Assisi"]
[Date "2022.11.24"]
[Round "9.2"]
[White "Holzke, Frank"]
[Black "Bellia, Fabrizio"]
[Result "1/2-1/2"]
[ECO "E20"]
[WhiteElo "2476"]
[BlackElo "2398"]
[Annotator "TA"]
[PlyCount "57"]
[EventDate "2022.11.14"]
[EventType "swiss"]
[EventCountry "ITA"]
[SourceTitle "playchess.com"]
[Source "ChessBase"]
[SourceQuality "1"]
[TimeControl "40/5400+30:1800+30"]

{[%evp 12,57,14,22,23,0,18,1,43,39,41,39,56,57,52,57,54,27,22,23,47,50,48,39,41,41,41,16,19,-79,0,0,0,0,0,0,0,0,0,0,7,0,21,0,0,0,12,0]} 1. d4 {[%emt 0:00:06][%cal Bd2d4,Bd4d5][%mdl 32]} Nf6 {[%emt 0:00:06]} 2. c4 {[%emt 0:00:08]} e6 {[%emt 0:00:04]} 3. Nc3 {[%emt 0:00:10]} Bb4 {[%emt 0:00:06]} 4. f3 {[%emt 0:00:25]} c5 {[%emt 0:00:26]} 5. d5 {[%emt 0:00:16]} d6 {[%emt 0:00:24]} 6. e4 {[%emt 0:00:15]} O-O {[%emt 0:00:18]} 7. Nge2 {[%emt 0:00:39]} Re8 {[%emt 0:00:25] E20: Nimzo-Indian: 4 g3 and 4 f3.} 8. Nf4 {[%emt 0:03:15]} b5 {[%emt 0:04:15] [#]} 9. a4 $146 {[%emt 0:02:33]} ({Predecessor:} 9. cxb5 e5 10. Nd3 Ba5 11. Be2 a6 12. bxa6 Bxa6 13. O-O c4 14. Nf2 Nbd7 15. g4 {0-1 (42) Suleymanli,A (2537)-Adly,A (2596) Warsaw 2021}) 9... e5 {[%emt 0:07:20]} 10. Nfe2 {[%emt 0:01:18]} bxc4 {[%emt 0:02:06]} 11. Ng3 {[%emt 0:00:30] Against Nh5} Bxc3+ {[%emt 0:10:22]} 12. bxc3 {[%emt 0:00:13]} Qa5 {[%emt 0:00:48]} 13. Qc2 {[%emt 0:03:29]} g6 {[%emt 0:01:08]} 14. Bxc4 {[%emt 0:01:51]} Ba6 {[%emt 0:00:15]} 15. Bxa6 {[%emt 0:00:25]} Qxa6 {[%emt 0:02:00]} 16. c4 {[%emt 0:03:52]} Nbd7 {[%emt 0:00:21]} 17. O-O {[%emt 0:00:48]} Rab8 {[%emt 0:07:53]} 18. Bd2 {[%emt 0:00:39] Prevents Rb4.} Rb7 {[%emt 0:00:31]} 19. Ra2 {[%emt 0:27:30]} Qb6 {[%emt 0:08:04]} 20. f4 {[%emt 0:05:49]} (20. a5 $11 Qb3 21. Qxb3 Rxb3 22. Rc1) 20... Qb3 {[%emt 0:10:31]} (20... exf4 $17 21. a5 Qd8 22. Rxf4 h5) 21. fxe5 $11 {[%emt 0:02:11] The position is equal.} Qxc2 {[%emt 0:01:25]} 22. Rxc2 {[%emt 0:00:13]} Rxe5 {[%emt 0:00:56]} 23. Bc3 {[%emt 0:01:24]} Ng4 {[%emt 0:01:01][%cal Og4e3] [#] aiming for ...Ne3!} 24. Bxe5 {[%emt 0:00:55]} Ngxe5 {[%emt 0:01:54]} 25. a5 {[%emt 0:13:00]} Rb4 {[%emt 0:00:44]} 26. Rfc1 {[%emt 0:00:15]} Nd3 {[%emt 0:02:47] Pair of Knights!} 27. Rf1 {[%emt 0:01:41]} (27. Rd1 $5 {[%cal Rd1d3]} Nb2 28. Rb1 $11) 27... N3e5 {[%emt 0:00:07]} 28. Rfc1 {[%emt 0:00:15]} Nd3 {[%emt 0:00:09]} 29. Rf1 {[%emt 0:00:12] Weighted Error Value: White=0.13 (very precise) /Black=0.10 (very precise)} 1/2-1/2

[Event "FIDE WSCC 50 2022"]
[Site "Assisi"]
[Date "2022.11.24"]
[Round "9.3"]
[White "Lima, Darcy"]
[Black "Nevednichy, Vladislav"]
[Result "1/2-1/2"]
[ECO "E08"]
[WhiteElo "2415"]
[BlackElo "2499"]
[Annotator "TA"]
[PlyCount "64"]
[EventDate "2022.11.14"]
[EventType "swiss"]
[EventCountry "ITA"]
[SourceTitle "playchess.com"]
[Source "ChessBase"]
[SourceQuality "1"]
[TimeControl "40/5400+30:1800+30"]

{[%evp 22,64,41,47,41,-14,-13,-13,-6,-17,-8,-14,-14,-10,0,0,0,0,0,0,0,0,0,0,0,0,0,0,0,-7,0,0,0,0,0,0,0,0,0,0,0,0,0,0,0]} 1. d4 {[%emt 0:00:02]} d5 {[%emt 0:00:16]} 2. Nf3 {[%emt 0:00:37]} Nf6 {[%emt 0:00:13]} 3. c4 {[%emt 0:01:49]} e6 {[%emt 0:00:05]} 4. g3 {[%emt 0:00:38]} Bb4+ {[%emt 0:00:07]} 5. Bd2 {[%emt 0:00:06]} Be7 {[%emt 0:00:11]} 6. Bg2 {[%emt 0:00:13]} O-O {[%emt 0:00:04]} 7. O-O {[%emt 0:00:07]} c6 {[%emt 0:00:16]} 8. Qc2 {[%emt 0:02:03]} b6 {[%emt 0:00:19]} 9. Bf4 {[%emt 0:00:51]} Bb7 {[%emt 0:12:54]} 10. Rd1 {[%emt 0:08:10]} Nbd7 {[%emt 0:01:06]} 11. Nc3 {[%emt 0:00:18]} Rc8 {[%emt 0:09:07]} 12. Ne5 {[%emt 0:07:05]} Nh5 {[%emt 0:05:17] E08: Closed Catalan: Main Line: 7 Qc2.} 13. cxd5 {[%emt 0:08:39]} (13. Bc1 $14) 13... cxd5 $11 {[%emt 0:01:59] The position is equal.} ({But not} 13... Nxf4 14. dxc6 Nxg2 15. cxb7 $16 (15. cxd7 Rc7 $11)) 14. Be3 {[%emt 0:07:02]} (14. Nd3 {simplifies} Nxf4 15. Nxf4 Nf6 16. Qb3) 14... Nhf6 {[%emt 0:03:16] [#]} 15. Qd3 $146 {[%emt 0:06:03]} ({Predecessor:} 15. f4 a6 16. f5 Nxe5 17. dxe5 Ng4 18. Bd4 Bc5 19. Qd2 Nxe5 20. fxe6 fxe6 21. Qe3 {1-0 (32) Docx,S (2328)-Alienkin,A (2379) Belgium 2012}) 15... a6 {[%emt 0:05:50]} 16. Rac1 {[%emt 0:07:14]} b5 {[%emt 0:04:54]} 17. Nb1 {[%emt 0:04:15]} Nxe5 {[%emt 0:06:02]} 18. dxe5 {[%emt 0:00:12]} Nd7 {[%emt 0:00:15]} 19. Bd4 {[%emt 0:00:23]} Rxc1 {[%emt 0:16:29]} 20. Rxc1 {[%emt 0:00:06]} Qb8 {[%emt 0:00:08]} 21. f4 {[%emt 0:02:28]} Rc8 {[%emt 0:00:06]} 22. Rxc8+ {[%emt 0:08:22]} Qxc8 {[%emt 0:00:03]} 23. Qc3 {[%emt 0:00:06] Inhibits Qc1+.} Qxc3 {[%emt 0:00:36]} 24. Nxc3 {[%emt 0:00:17]} b4 {[%emt 0:03:27]} 25. Nd1 {[%emt 0:01:45]} f6 {[%emt 0:02:46]} 26. exf6 {[%emt 0:03:02]} gxf6 {[%emt 0:00:37]} 27. Nf2 {[%emt 0:01:18]} Kf7 {[%emt 0:01:24]} 28. Nd3 {[%emt 0:05:00]} a5 {[%emt 0:00:42]} 29. b3 {[%emt 0:00:22]} Bd6 {[%emt 0:09:47]} 30. Bh3 {[%emt 0:00:31]} Ke7 {[%emt 0:02:47]} 31. Kf2 {[%emt 0:03:27]} Ba6 {[%emt 0:00:31]} 32. Ke1 {[%emt 0:02:11]} Bb5 {[%emt 0:06:02] An even fight not without its subleties.   Weighted Error Value: White=0.05 (flawless) /Black=0.01 (flawless)} 1/2-1/2

[Event "FIDE WSCC 50 2022"]
[Site "Assisi"]
[Date "2022.11.24"]
[Round "9.4"]
[White "Pavlovic, Milos"]
[Black "Vinter-Schou, Uffe"]
[Result "1/2-1/2"]
[ECO "A04"]
[WhiteElo "2447"]
[BlackElo "2375"]
[Annotator "TA"]
[PlyCount "52"]
[EventDate "2022.11.14"]
[EventType "swiss"]
[EventCountry "ITA"]
[SourceTitle "playchess.com"]
[Source "ChessBase"]
[SourceQuality "1"]
[TimeControl "40/5400+30:1800+30"]

{[%evp 9,52,-2,6,0,0,4,5,4,11,8,4,-2,34,23,51,49,55,50,59,62,60,45,73,76,74,68,95,86,90,64,62,62,70,62,143,52,97,67,66,66,64,70,68,44,44]} 1. Nf3 {[%emt 0:01:13]} c5 {[%emt 0:04:04]} 2. g3 {[%emt 0:01:13]} Nc6 {[%emt 0:00:20]} 3. Bg2 {[%emt 0:01:34]} g6 {[%emt 0:00:21]} 4. O-O {[%emt 0:00:13]} Bg7 {[%emt 0:00:03]} 5. d3 {[%emt 0:00:15]} d6 {[%emt 0:00:21]} 6. c4 {[%emt 0:00:28] A04: Unusual lines after 1 Nf3 and King's Indian Attack.} Bf5 {[%emt 0:06:03]} 7. Nc3 {[%emt 0:00:12]} Qd7 {[%emt 0:00:20]} 8. Rb1 {[%emt 0:03:26] The position is equal.} Bh3 {[%emt 0:03:58]} 9. Bxh3 {[%emt 0:01:19]} Qxh3 {[%emt 0:00:03]} 10. Nd5 {[%emt 0:00:08] [#] Hoping for Nc7+.} Rc8 {[%emt 0:00:30] Against Nc7+} (10... Qd7 $5) 11. b4 {[%emt 0:02:45][%cal Bb2b4,Bb4b5][%mdl 32]} b6 {[%emt 0:20:40] [#]} (11... cxb4 {simplifies} 12. Nxb4 Nxb4 13. Rxb4 b6) 12. b5 $146 {[%emt 0:29:22]} ({Predecessor:} 12. bxc5 dxc5 13. Bf4 Qd7 14. Qc1 e6 15. Nc3 Nge7 16. Ne4 O-O 17. Bh6 f6 18. Bxg7 Kxg7 {1-0 (65) Ostovic,M (2322)-Horton,J (2023) Trieste 2015}) 12... Nd4 {[%emt 0:00:09]} 13. Nxd4 {[%emt 0:00:49]} Bxd4 {[%emt 0:01:20]} 14. e3 {[%emt 0:00:55]} Bg7 {[%emt 0:00:21]} 15. Bb2 {[%emt 0:10:22]} Kf8 {[%emt 0:21:26]} 16. Qe2 {[%emt 0:07:48]} h5 {[%emt 0:04:08]} 17. e4 {[%emt 0:06:11]} Qd7 {[%emt 0:07:31]} 18. f4 {[%emt 0:04:46] White is much more active.} e6 {[%emt 0:01:30] Inhibits f5.} 19. Bxg7+ {[%emt 0:01:54]} Kxg7 {[%emt 0:00:01]} 20. Qb2+ {[%emt 0:00:19]} f6 {[%emt 0:00:38]} 21. Ne3 {[%emt 0:00:13]} e5 {[%emt 0:05:35]} (21... Nh6 $14) 22. Nd5 {[%emt 0:02:06]} (22. a4 $16) 22... Rf8 {[%emt 0:00:07]} 23. Rf3 {[%emt 0:06:52]} Ne7 {[%emt 0:02:34] White is slightly better.} 24. Ne3 {[%emt 0:00:08]} h4 {[%emt 0:07:35]} 25. g4 {[%emt 0:07:55]} g5 {[%emt 0:01:27]} 26. f5 {[%emt 0:02:38]} Ra8 {[%emt 0:02:21] Weighted Error Value: White=0.09 (flawless) /Black=0.16 (very precise)} 1/2-1/2

[Event "FIDE WSCC 50 2022"]
[Site "Assisi"]
[Date "2022.11.24"]
[Round "9.5"]
[White "Bischoff, Klaus"]
[Black "Paschall, William"]
[Result "1-0"]
[ECO "A50"]
[WhiteElo "2479"]
[BlackElo "2343"]
[Annotator "TA"]
[PlyCount "33"]
[EventDate "2022.11.14"]
[EventType "swiss"]
[EventCountry "ITA"]
[SourceTitle "playchess.com"]
[Source "ChessBase"]
[SourceQuality "1"]
[TimeControl "40/5400+30:1800+30"]

{[%evp 9,33,33,35,39,32,13,44,24,24,9,21,16,27,2,24,0,10,0,57,60,132,137,187,182,675,650]} 1. d4 {[%emt 0:00:10][%cal Bd2d4,Bd4d5][%mdl 32]} Nf6 {[%emt 0:00:41]} 2. c4 {[%emt 0:00:15]} b6 {[%emt 0:00:49]} 3. f3 {[%emt 0:05:27]} Nc6 {[%emt 0:02:15]} 4. Nc3 {[%emt 0:22:19]} Bb7 {[%emt 0:11:09]} 5. e4 {[%emt 0:09:51]} e5 {[%emt 0:03:09]} 6. d5 {[%emt 0:01:24] A50: Queen's Fianchetto Defence (1 d4 Nf6 2 c4 b6).} Nd4 {[%emt 0:03:49]} 7. Nge2 {[%emt 0:00:44]} Bc5 {[%emt 0:04:54]} 8. Nxd4 {[%emt 0:01:04] White is slightly better.} Bxd4 {[%emt 0:00:55] [#]} 9. Qc2 $146 {[%emt 0:00:27]} ({Predecessor:} 9. Bg5 O-O 10. Qd2 c6 11. Ne2 Bc5 12. b4 Bd6 13. Rc1 cxd5 14. exd5 h6 15. Bh4 {0-1 (29) Parreno Cueto,A (1816)-Draghici Flutur,G (2152) Benidorm 2010}) 9... c6 {[%emt 0:03:07]} 10. Bd2 {[%emt 0:01:50]} a5 {[%emt 0:13:47]} 11. Bd3 {[%emt 0:05:37]} Rc8 {[%emt 0:06:32]} 12. O-O-O {[%emt 0:04:29]} Ba6 {[%emt 0:03:01]} 13. Kb1 {[%emt 0:01:12]} b5 {[%emt 0:04:56]} (13... O-O $11) 14. cxb5 $14 {[%emt 0:02:03]} cxb5 {[%emt 0:01:02]} ({Black should try} 14... Bxb5 $14 15. Nxb5 cxb5) 15. a4 $16 {[%emt 0:04:44][%cal Ba2a4,Ba4b5,Bb5a6][%mdl 32]} Qb6 {[%emt 0:05:00]} (15... d6 $16 {was necessary.} 16. axb5 (16. Bxb5+ Bxb5 17. axb5 Nd7 $11) 16... Bb7) 16. axb5 $18 {[%emt 0:01:09]} ({Much less strong is} 16. Bxb5 $6 Bxb5 17. axb5 O-O $14) 16... Bxc3 $2 {[%emt 0:01:07] [#]} (16... Bb7 17. Qb3 d6) 17. bxa6 {[%emt 0:01:44] Weighted Error Value: White=0.08 (flawless) /Black=0.68} 1-0

[Event "FIDE WSCC 50 2022"]
[Site "Assisi"]
[Date "2022.11.24"]
[Round "9.6"]
[White "Antic, Dejan"]
[Black "Jhunjhnuwala, Krishan"]
[Result "1-0"]
[ECO "A57"]
[WhiteElo "2412"]
[BlackElo "2326"]
[Annotator "TA"]
[PlyCount "107"]
[EventDate "2022.11.14"]
[EventType "swiss"]
[EventCountry "ITA"]
[SourceTitle "playchess.com"]
[Source "ChessBase"]
[SourceQuality "1"]
[TimeControl "40/5400+30:1800+30"]

{[%evp 20,107,41,16,25,22,108,70,122,142,144,137,147,134,112,119,124,123,104,106,130,72,75,13,16,0,0,0,0,0,192,204,201,172,178,200,192,122,230,127,205,183,212,216,214,214,354,0,227,0,388,88,77,0,389,286,286,286,278,264,452,460,452,444,489,492,475,456,423,340,475,378,388,287,493,463,12838,12838,2653,462,1770,1516,12837,12837,12840,12840,12843,12843,12845,12846]} 1. d4 {[%emt 0:00:08]} Nf6 {[%emt 0:00:07]} 2. Nf3 {[%emt 0:00:18]} g6 {[%emt 0:00:19]} 3. c4 {[%emt 0:00:20][%cal Bc2c4,Bc4b5,Bb5b6][%mdl 32]} c5 {[%emt 0:00:14]} 4. d5 {[%emt 0:03:49]} b5 {[%emt 0:01:17]} 5. cxb5 {[%emt 0:01:57]} a6 {[%emt 0:00:20]} 6. b6 {[%emt 0:00:25]} d6 {[%emt 0:01:08]} 7. Nc3 {[%emt 0:00:21]} Nbd7 {[%emt 0:01:37]} 8. e4 {[%emt 0:00:21]} Bg7 {[%emt 0:01:00]} 9. Be2 {[%emt 0:02:30]} O-O {[%emt 0:00:54]} 10. O-O {[%emt 0:00:20]} Nxb6 {[%emt 0:01:36]} 11. a4 {[%emt 0:04:20][%cal Ba2a4,Ba4a5][%mdl 32]} Rb8 {[%emt 0:02:02] is the legacy move (11...Bg4). A57: Benko/Volga Gambit.} 12. Ra3 {[%emt 0:03:36] [#]} e6 $146 {[%emt 0:10:52]} (12... Na8 $11 {remains equal.}) ({Predecessor:} 12... a5 13. Nd2 e6 14. dxe6 Bxe6 15. Nb5 d5 16. exd5 Bxd5 17. b3 Qe7 18. Nc4 Rfd8 {1-0 (25) Fink,S (2153)-Blocker,C (2386) Philadelphia 2007}) 13. dxe6 {[%emt 0:11:06]} fxe6 {[%emt 0:01:07]} (13... Bxe6 $14 14. Ng5 a5) 14. a5 $16 {[%emt 0:01:10]} Na8 {[%emt 0:02:44]} 15. e5 {[%emt 0:07:45]} dxe5 {[%emt 0:03:12]} 16. Qxd8 {[%emt 0:03:22]} (16. Nxe5 Bb7 $16) 16... Rxd8 {[%emt 0:00:07]} 17. Nxe5 {[%emt 0:00:06] [#] aiming for Nc6.} Bb7 {[%emt 0:08:57] Against Nc6} 18. Bg5 {[%emt 0:05:38]} Nc7 {[%emt 0:02:48]} 19. Rb3 {[%emt 0:09:53]} Ncd5 {[%emt 0:14:31] [#]} 20. Nxd5 {[%emt 0:05:31]} (20. Na4 $142 $1) 20... exd5 {[%emt 0:08:37]} 21. Rb6 {[%emt 0:01:41] Prevents c4. White has more active pieces.} (21. Re1 $16) 21... Re8 $1 $11 {[%emt 0:02:25]} 22. Bf4 {[%emt 0:21:22][%cal Oe2f3]} (22. Bxf6 {simplifies} Bxf6 23. Rxf6 Rxe5 24. Bg4) 22... g5 {[%emt 0:02:29]} 23. Bg3 {[%emt 0:05:49][%cal Oe2f3] And now Bf3! would win.} Ne4 {[%emt 0:02:23]} 24. Nd7 {[%emt 0:04:14][%cal Be5d7,Bd7c5,Bc5e6][%mdl 32]} Nxg3 $2 {[%emt 0:02:03]} (24... Rbd8 $1 $11 {and Black has nothing to worry.} 25. Rxb7 Nxg3 26. hxg3 Rxe2) 25. hxg3 $18 {[%emt 0:00:12]} Rbd8 {[%emt 0:03:49]} 26. Bh5 {[%emt 0:00:43]} (26. Nxc5 Rxe2 27. Rxb7 (27. Nxb7 Rf8 $15) 27... Bd4 28. Nxa6 Rd6 $11) 26... Re7 {[%emt 0:02:43]} 27. Nxc5 {[%emt 0:00:08]} Bc8 {[%emt 0:05:00]} 28. b4 {[%emt 0:01:32]} (28. Rb8 $18) 28... Bf5 {[%emt 0:03:53]} (28... g4 $16) 29. Bd1 {[%emt 0:02:12]} (29. Rxa6 $18 {Black must now prevent g4.} Bc3 30. Rb6) 29... Bc3 {[%emt 0:01:57]} (29... Bd4 $16 {keeps fighting.}) 30. g4 {[%emt 0:00:52]} (30. Rxa6 Bxb4 31. Rf6 Rf8 $11) (30. Nxa6 $2 Bd3 31. Nb8 Bxf1 $19) 30... Bg6 {[%emt 0:01:12]} 31. Bb3 {[%emt 0:00:14]} (31. Nxa6 $2 Bd3 $19) (31. Rxa6 Bxb4 32. Ne6 Rde8 $17) 31... Kh8 {[%emt 0:00:55]} 32. Ne6 {[%emt 0:01:41]} (32. Rxa6 Bxb4 33. Ne6 Rde8 $11) 32... Rdd7 {[%emt 0:02:57]} (32... Rde8 $142) 33. Nc5 {[%emt 0:00:23]} (33. Rxa6 Ra7 34. Rb6 Bxb4 $18) (33. Nxg5 d4 34. f4 Bd2 $18) 33... Rd8 {[%emt 0:00:51]} 34. Ne6 $2 {[%emt 0:00:17]} (34. Rxa6 Bxb4 35. Ne6 Rde8 $15) (34. Rd1) 34... Rdd7 $1 {[%emt 0:00:05]} 35. Rb8+ {[%emt 0:01:02]} (35. Rxa6 Ra7 36. Rb6 Bxb4 $18) (35. Nxg5 d4 36. f4 Bd2 $18) (35. Rc1 $18 {has better winning chances.} d4 36. Rxa6) 35... Re8 $16 {[%emt 0:01:40]} 36. Rb6 {[%emt 0:00:07][%mdl 8192]} (36. Rxe8+ $16 Bxe8 37. Nxg5) 36... Ree7 $1 $18 {[%emt 0:02:19] White leaves nothing to chance now.} 37. Ba4 {[%emt 0:00:12]} (37. Rxa6 Ra7 38. Rb6 Bxb4 $18) (37. Nxg5 d4 38. f4 Bd2 $18) 37... Rb7 {[%emt 0:01:44] Hoping for ...Rxb6.} 38. Rxa6 {[%emt 0:00:15]} Rb8 {[%emt 0:00:48] Inhibits Ra8.} 39. Rd1 {[%emt 0:01:12] Inhibits Bd3.} ({And not} 39. Nxg5 Bd3 40. Rc6 Bxf1 41. Rxc3 Rxb4 $15) 39... Be8 $2 {[%emt 0:02:50]} (39... Bxb4 40. Nxg5 Bc5) 40. Bxe8 {[%emt 0:02:00]} Rbxe8 {[%emt 0:00:13]} 41. Nxg5 {[%emt 0:04:22]} Re1+ {[%emt 0:08:49]} 42. Rxe1 {[%emt 0:00:07]} Rxe1+ {[%emt 0:00:03][%mdl 4096] Endgame KRB-KRN} 43. Kh2 {[%emt 0:00:09]} Bxb4 {[%emt 0:00:53]} 44. Ra7 {[%emt 0:03:24]} Ra1 {[%emt 0:02:22]} 45. a6 {[%emt 0:03:34]} ({Not} 45. Nxh7 Rxa5 46. Rd7 Ra6 $18) 45... h6 {[%emt 0:02:37]} 46. Ne6 {[%emt 0:09:50]} Bc3 $2 {[%emt 0:00:42]} (46... Be1 47. Kg3 Ra3+ 48. Kf4 Bxf2 49. Ra8+ Kh7) 47. f4 {[%emt 0:02:00] Threatens to win with g5. White is clearly winning.} Kg8 {[%emt 0:02:29]} (47... Ra3 $142 48. Ra8+ Kh7) 48. g5 {[%emt 0:02:02]} hxg5 {[%emt 0:00:21]} 49. Nxg5 {[%emt 0:01:55]} (49. fxg5 $142 Be5+ 50. Kh3) 49... d4 {[%emt 0:03:18]} (49... Bf6 $142 50. Kg3 d4) 50. Ne4 {[%emt 0:00:22]} Bb2 {[%emt 0:02:05]} 51. Rb7 {[%emt 0:01:09]} Bc1 {[%emt 0:00:40]} 52. a7 {[%emt 0:00:41]} Bxf4+ {[%emt 0:00:11]} 53. g3 {[%emt 0:00:11]} Be5 {[%emt 0:00:23]} 54. Rb8+ {[%emt 0:00:16] Weighted Error Value: White=0.76/Black=0.43} 1-0